bitfinex-derivatives/quotes_SOLF0:USTF0_20250221
["timestamp","ask_amount","ask_price","bid_price","bid_amount"]
[1740140419843,0.04213525,177.61,177.6,5.6293]
[1740140420341,15.42021345,177.68,177.6,56.3]
[1740140420543,5.6272,177.67,177.63,5.6282]
[1740140420941,15.42021345,177.68,177.59,1.6816]
[1740140421144,15.42021345,177.65,177.56,3.5146]
[1740140421346,15.45830032,177.65,177.62,0.0433349]
[1740140421642,15.42021345,177.65,177.52,15.42021345]
[1740140421839,15.45666568,177.65,177.62,0.04330448]
[1740140422044,5.6289,177.62,177.58,5.6299]
[1740140422541,0.04014038,177.62,177.58,0.04154279]
[1740140422745,0.04014038,177.62,177.61,5.629]
[1740140423545,0.04014038,177.62,177.58,0.04154279]
[1740140424740,5.6293,177.61,177.58,0.04154279]
[1740140425548,0.04014038,177.62,177.58,0.04154279]
[1740140425746,5.66904038,177.62,177.58,0.04154279]
[1740140426041,5.66904038,177.62,177.59,5.6296]
[1740140426645,5.6291,177.61,177.58,5.67144279]
[1740140427245,5.66894038,177.62,177.58,5.67144279]
[1740140427443,0.04014038,177.62,177.58,5.67144279]
[1740140427644,0.04014038,177.62,177.58,0.04154279]
[1740140427839,15.46035383,177.62,177.58,0.04154279]
[1740140428243,15.42021345,177.59,177.58,0.04154279]
[1740140428546,21.04991345,177.59,177.58,0.04154279]
[1740140433551,15.46035383,177.62,177.58,0.04154279]
[1740140433750,0.04014038,177.62,177.58,0.04154279]
[1740140433949,0.04014038,177.62,177.59,5.6295]
[1740140434150,5.66904038,177.62,177.59,5.6295]
[1740140434655,0.04014038,177.62,177.58,0.04154279]
[1740140434855,5.629,177.61,177.58,5.67144279]
[1740140435656,5.629,177.61,177.59,5.6296]
[1740140436347,0.04014038,177.62,177.61,5.629]
[1740140438756,0.04014038,177.62,177.6,5.6291]
[1740140439353,0.04014038,177.62,177.58,0.04154279]
[1740140439556,0.04014038,177.62,177.61,5.629]
[1740140447766,15.42021345,177.7,177.61,56.3]
[1740140447959,15.42021345,177.7,177.57,15.42021345]
[1740140448465,15.42021345,177.7,177.65,5.6276]
[1740140448966,5.66905011,177.69,177.66,0.03927524]
[1740140449657,0.04235011,177.69,177.66,0.03927524]
[1740140450167,0.04235011,177.69,177.68,5.6268]
[1740140451656,15.42021345,177.76,177.67,1.8287]
[1740140451858,11.71639002,177.77,177.67,1.8287]
[1740140452260,5.6243,177.76,177.71,5.6258]
[1740140452868,5.6247,177.75,177.72,0.03700437]
[1740140453368,1.8517,177.78,177.72,5.66250437]
[1740140454070,5.6245,177.76,177.72,5.66250437]
[1740140454463,5.6245,177.76,177.72,0.03700437]
[1740140454863,5.6242,177.77,177.72,0.03700437]
[1740140455266,5.6242,177.77,177.73,5.6251]
[1740140455465,5.6242,177.77,177.72,0.03700437]
[1740140455665,15.42021345,177.79,177.72,0.03700437]
[1740140456270,5.6242,177.77,177.73,5.6252]
[1740140456570,15.42021345,177.79,177.73,5.6252]
[1740140456770,5.6242,177.77,177.72,0.03700437]
[1740140457072,5.6242,177.77,177.74,5.6247]
[1740140458473,5.6227,177.81,177.72,15.45721782]
[1740140458971,5.6225,177.82,177.78,5.6234]
[1740140459173,5.6225,177.82,177.73,3.651]
[1740140459366,5.6225,177.82,177.78,0.04062016]
[1740140460263,5.6232,177.8,177.78,0.04062016]
[1740140460466,193.0,177.83,177.78,0.04062016]
[1740140461569,5.6233,177.79,177.78,0.04062016]
[1740140466767,5.6231,177.8,177.78,0.04062016]
[1740140467169,3.4295,177.88,177.78,0.04062016]
[1740140467372,5.6217,177.85,177.81,5.6227]
[1740140467573,15.42021345,177.87,177.78,0.04062016]
[1740140467873,15.42021345,177.81,177.73,3.5598]
[1740140468275,5.623,177.8,177.75,0.03607851]
[1740140468473,15.42021345,177.81,177.75,0.03607851]
[1740140469573,5.624,177.77,177.75,0.03607851]
[1740140470778,15.46817075,177.79,177.76,5.6241]
[1740140470977,9.84477075,177.79,177.73,13.40457075]
[1740140471169,9.84477075,177.79,177.77,5.6237]
[1740140471375,9.84477075,177.81,177.76,0.04178218]
[1740140472181,9.84477075,177.83,177.77,9.84477075]
[1740140472379,9.84477075,177.81,177.76,0.04178218]
[1740140472681,9.84477075,177.81,177.77,0.03561368]
[1740140473075,9.84477075,177.79,177.77,0.03561368]
[1740140473274,9.84477075,177.81,177.77,0.03561368]
[1740140474278,5.6232,177.8,177.77,5.65951368]
[1740140475177,5.6233,177.79,177.77,0.03561368]
[1740140475374,9.84477075,177.81,177.77,0.03561368]
[1740140475883,5.6236,177.79,177.77,0.03561368]
[1740140476385,5.6236,177.78,177.77,0.03561368]
[1740140477187,15.46817075,177.79,177.77,0.03561368]
[1740140477684,11.64044293,177.86,177.77,0.03561368]
[1740140477885,15.46767075,177.81,177.77,0.03561368]
[1740140478084,9.84477075,177.81,177.77,0.03561368]
[1740140478285,5.6233,177.8,177.77,5.65931368]
[1740140478482,9.84477075,177.81,177.77,0.03561368]
[1740140478688,9.84477075,177.79,177.77,0.03561368]
[1740140479189,5.6236,177.78,177.77,0.03561368]
[1740140480482,5.6236,177.78,177.77,1.368e-05]
[1740140484190,15.50985567,177.79,177.77,1.368e-05]
[1740140484889,9.88645567,177.79,177.77,1.368e-05]
[1740140485388,5.6236,177.78,177.77,1.368e-05]
[1740140489688,56.25,177.78,177.66,7.80724858]
[1740140489896,9.84477075,177.71,177.66,7.80724858]
[1740140490299,9.84477075,177.69,177.66,7.80724858]
[1740140490496,5.6271,177.67,177.66,7.80724858]
[1740140490700,9.84477075,177.7,177.66,7.80724858]
[1740140490900,0.04168377,177.68,177.66,7.80724858]
[1740140491199,0.04168377,177.68,177.67,5.6271]
[1740140491401,0.04168377,177.68,177.66,9.84477075]
[1740140491791,0.04168377,177.68,177.67,5.6271]
[1740140493496,15.16044293,177.77,177.67,5.6271]
[1740140493698,11.64044293,177.77,177.73,9.84477075]
[1740140494194,9.84477075,177.84,177.75,9.84477075]
[1740140494402,9.84477075,177.84,177.77,9.84477075]
[1740140494696,9.84477075,177.84,177.79,5.6233]
[1740140494896,9.84477075,177.84,177.79,5.6588815]
[1740140495602,9.84477075,177.84,177.8,5.6227]
[1740140495798,23.56087791,177.91,177.79,9.88035225]
[1740140496000,9.84477075,177.86,177.79,9.88035225]
[1740140496200,5.6217,177.85,177.8,5.623]
[1740140497002,15.37262204,177.88,177.81,5.6227]
[1740140497200,5.6211,177.86,177.81,5.6227]
[1740140497704,15.37262204,177.88,177.83,0.04049601]
[1740140497906,5.6211,177.87,177.83,0.04049601]
[1740140498399,15.37262204,177.88,177.83,0.04049601]
[1740140499002,5.6217,177.84,177.83,0.04049601]
[1740140501902,15.37262204,177.86,177.83,0.04049601]
[1740140502105,15.37262204,177.89,177.83,0.04049601]
[1740140502595,5.6211,177.86,177.83,0.04049601]
[1740140502905,5.6211,177.86,177.83,5.66249601]
[1740140503105,15.37262204,177.89,177.83,0.04049601]
[1740140503606,5.6211,177.87,177.83,0.04049601]
[1740140503809,15.37262204,177.89,177.83,0.04049601]
[1740140504008,15.37262204,177.89,177.83,5.66239601]
[1740140504207,15.37262204,177.89,177.83,0.04049601]
[1740140504805,5.6216,177.85,177.83,0.04049601]
[1740140505005,15.37262204,177.89,177.83,0.04049601]
[1740140505206,15.37262204,177.86,177.83,0.04049601]
[1740140505405,5.6217,177.84,177.83,0.04049601]
[1740140506612,5.6217,177.84,177.83,9.601e-05]
[1740140506804,56.23,177.84,177.72,5.3024]
[1740140507104,15.37262204,177.82,177.72,5.3024]
[1740140507311,5.6233,177.79,177.75,5.6246]
[1740140507499,15.37262204,177.82,177.75,5.6246]
[1740140507905,0.040384,177.8,177.77,0.03800126]
[1740140509006,5.6236,177.78,177.77,0.03800126]
[1740140513614,5.6253,177.73,177.68,120.94838725]
[1740140513811,15.37262204,177.79,177.71,5.6257]
[1740140514513,15.37262204,177.79,177.7,5.6261]
[1740140514713,0.04252197,177.77,177.73,0.04180153]
[1740140514903,5.6252,177.74,177.73,0.04180153]
[1740140517514,5.6261,177.71,177.56,156.16137201]
[1740140517707,18.89812204,177.76,177.63,17.08492204]
[1740140517912,18.89812204,177.76,177.66,5.6271]
[1740140518112,5.6255,177.73,177.63,17.08492204]
[1740140518413,5.6255,177.73,177.69,5.6262]
[1740140518714,5.6259,177.71,177.69,0.03752123]
[1740140518917,0.04281917,177.73,177.69,0.03752123]
[1740140519115,5.6256,177.72,177.69,0.03752123]
[1740140519816,5.6256,177.72,177.69,5.66392123]
[1740140520416,5.6259,177.71,177.69,0.03752123]
[1740140520618,0.04281917,177.73,177.69,0.03752123]
[1740140521613,5.6262,177.7,177.69,0.03752123]
[1740140522215,5.6257,177.72,177.69,0.03752123]
[1740140522414,0.04281917,177.73,177.69,0.03752123]
[1740140522614,9.89503239,177.73,177.69,0.03752123]
[1740140522814,5.6259,177.71,177.69,0.03752123]
[1740140523011,0.04281917,177.73,177.69,9.88973445]
[1740140523319,0.04281917,177.73,177.71,5.6256]
[1740140523517,0.04281917,177.73,177.69,9.88973445]
[1740140523720,0.04281917,177.73,177.71,9.85221322]
[1740140524010,0.04281917,177.73,177.72,5.6255]
[1740140524208,0.04281917,177.73,177.72,61.8955]
[1740140524408,9.85221322,177.8,177.72,56.27]
[1740140524611,1.8494,177.88,177.77,9.85221322]
[1740140524916,9.85221322,177.81,177.75,9.85221322]
[1740140525116,5.6239,177.78,177.73,9.85221322]
[1740140525515,9.85221322,177.79,177.73,9.85221322]
[1740140525819,5.66637858,177.77,177.74,0.04024884]
[1740140526515,0.04237858,177.77,177.74,0.04024884]
[1740140527619,0.04237858,177.77,177.76,5.6243]
[1740140528010,0.04237858,177.77,177.76,61.8743]
[1740140529118,0.04237858,177.77,177.74,0.04024884]
[1740140530214,0.04237858,177.77,177.74,56.30024884]
[1740140530624,0.04237858,177.77,177.76,5.6243]
[1740140531013,0.04237858,177.77,177.76,61.8743]
[1740140531522,5.6221,177.83,177.76,56.25]
[1740140531812,5.6214,177.85,177.76,15.38428646]
[1740140532018,3.4453,177.87,177.76,15.38428646]
[1740140532019,1.6989,177.87,177.77,1.8368]
[1740140532415,0.03511588,177.84,177.81,5.6224]
[1740140532821,0.03511588,177.84,177.8,0.0378997]
[1740140533014,5.65701588,177.84,177.81,5.6224]
[1740140533816,0.03511588,177.84,177.81,5.6224]
[1740140534619,5.65691588,177.84,177.81,5.6224]
[1740140535219,0.03511588,177.84,177.8,0.0378997]
[1740140535922,5.6227,177.81,177.8,0.0378997]
[1740140539617,0.03511588,177.84,177.8,0.0378997]
[1740140541320,0.03511588,177.84,177.82,5.6221]
[1740140542924,0.03511588,177.84,177.83,5.6221]
[1740140543523,0.03511588,177.84,177.82,5.6223]
[1740140545927,0.03511588,177.84,177.8,0.0378997]
[1740140546525,5.65691588,177.84,177.81,5.6225]
[1740140546726,0.03511588,177.84,177.8,0.0378997]
[1740140547329,0.03511588,177.84,177.82,5.6223]
[1740140547928,0.03511588,177.84,177.83,5.6221]
[1740140548924,17.13818646,177.92,177.8,0.0378997]
[1740140549228,17.13818646,177.92,177.78,1.8437]
[1740140549229,5.6204,177.89,177.85,5.6214]
[1740140549728,17.13818646,177.92,177.85,5.6214]
[1740140549927,5.6205,177.88,177.85,5.6214]
[1740140550128,5.6205,177.88,177.87,0.03705766]
[1740140556947,17.13818646,177.92,177.87,0.03705766]
[1740140557247,26.66380078,177.95,177.87,0.03705766]
[1740140557641,26.66380078,177.95,177.88,5.6203]
[1740140558144,5.6195,177.92,177.88,5.6203]
[1740140558345,15.38428646,177.95,177.88,5.6203]
[1740140558543,15.38428646,177.95,177.87,0.03705766]
[1740140559145,15.38428646,177.95,177.87,5.65775766]
[1740140559342,15.38428646,177.95,177.87,0.03705766]
[1740140559849,5.6204,177.89,177.87,0.03705766]
[1740140560242,5.6205,177.88,177.87,0.03705766]
[1740140563544,5.6204,177.89,177.87,0.03705766]
[1740140564246,9.83185292,177.91,177.87,0.03705766]
[1740140564542,5.6205,177.88,177.87,0.03705766]
[1740140564737,1.844,177.96,177.87,0.03705766]
[1740140564945,5.62,177.9,177.87,0.03705766]
[1740140565145,5.62,177.9,177.87,5.65775766]
[1740140565452,9.83185292,177.92,177.87,0.03705766]
[1740140565749,5.6204,177.89,177.87,0.03705766]
[1740140567550,5.6205,177.88,177.87,0.03705766]
[1740140568244,5.6204,177.89,177.87,0.03705766]
[1740140568444,17.12892113,177.94,177.87,0.03705766]
[1740140568749,15.36232113,177.91,177.87,0.03705766]
[1740140569150,17.12892113,177.94,177.87,0.03705766]
[1740140569350,5.6201,177.9,177.87,0.03705766]
[1740140569750,17.12892113,177.94,177.87,0.03705766]
[1740140570052,5.6201,177.9,177.87,0.03705766]
[1740140570954,17.12892113,177.94,177.87,0.03705766]
[1740140571151,5.6198,177.91,177.87,0.03705766]
[1740140571551,5.62,177.9,177.87,0.03705766]
[1740140571955,17.12892113,177.94,177.87,0.03705766]
[1740140572155,5.6205,177.89,177.87,0.03705766]
[1740140572354,17.12892113,177.94,177.87,0.03705766]
[1740140572854,5.6205,177.88,177.87,0.03705766]
[1740140575056,17.12892113,177.94,177.87,0.03705766]
[1740140575257,5.6201,177.9,177.87,0.03705766]
[1740140575755,17.12892113,177.94,177.87,0.03705766]
[1740140575957,5.6203,177.89,177.87,0.03705766]
[1740140577053,5.6205,177.88,177.87,0.03705766]
[1740140580750,5.6205,177.88,177.87,5.766e-05]
[1740140580955,20.98282113,177.88,177.87,5.766e-05]
[1740140581560,77.20282113,177.88,177.87,5.766e-05]
[1740140582056,20.98282113,177.88,177.87,5.766e-05]
[1740140582256,77.20282113,177.88,177.87,5.766e-05]
[1740140583762,71.58232113,177.88,177.76,5.624]
[1740140583964,15.36232113,177.83,177.76,5.624]
[1740140584166,5.6234,177.79,177.73,122.10372629]
[1740140584462,5.6234,177.79,177.75,5.6243]
[1740140584852,5.66045766,177.79,177.75,5.66720166]
[1740140585258,5.6237,177.78,177.75,0.04290166]
[1740140585758,0.03705766,177.79,177.75,0.04290166]
[1740140586364,5.6243,177.76,177.75,0.04290166]
[1740140586554,15.4744312,177.76,177.75,0.04290166]
[1740140586754,9.8501312,177.76,177.75,0.04290166]
[1740140589559,17.19111225,177.79,177.75,0.04290166]
[1740140589859,0.03705766,177.79,177.75,0.04290166]
[1740140590053,0.03705766,177.79,177.76,5.624]
[1740140590360,0.03705766,177.79,177.75,0.04290166]
[1740140590960,5.66035766,177.79,177.75,0.04290166]
[1740140591459,5.66035766,177.79,177.75,5.66750166]
[1740140591859,0.03705766,177.79,177.75,5.66750166]
[1740140592164,0.03705766,177.79,177.75,0.04290166]
[1740140592668,5.66045766,177.79,177.75,5.66730166]
[1740140592864,0.03705766,177.79,177.75,0.04290166]
[1740140593664,5.66065766,177.79,177.75,5.66740166]
[1740140593862,0.03705766,177.79,177.75,5.66740166]
[1740140594067,0.03705766,177.79,177.75,0.04290166]
[1740140594276,5.6243,177.76,177.75,0.04290166]
[1740140599063,0.03705766,177.79,177.75,0.04290166]
[1740140599260,5.6242,177.77,177.75,0.04290166]
[1740140600568,0.03705766,177.79,177.75,0.04290166]
[1740140601662,0.03705766,177.79,177.76,5.6242]
[1740140602262,0.03705766,177.79,177.75,0.04290166]
[1740140603268,5.6237,177.78,177.75,0.04290166]
[1740140603570,5.6237,177.78,177.75,5.66750166]
[1740140604867,5.6242,177.77,177.75,0.04290166]
[1740140605966,0.03705766,177.79,177.75,0.04290166]
[1740140606170,5.6237,177.78,177.75,0.04290166]
[1740140606572,5.6237,177.78,177.75,5.66740166]
[1740140608072,5.66055766,177.79,177.75,5.66740166]
[1740140608270,0.03705766,177.79,177.77,5.6237]
[1740140608473,0.03705766,177.79,177.75,0.04290166]
[1740140608870,0.03705766,177.79,177.78,5.6236]
[1740140611469,0.03705766,177.79,177.78,15.46480437]
[1740140611674,9.84120437,177.87,177.82,5.6223]
[1740140611978,9.84120437,177.85,177.79,9.84120437]
[1740140612470,5.6223,177.83,177.79,9.84120437]
[1740140612675,5.6223,177.83,177.77,9.84120437]
[1740140612872,5.6228,177.81,177.79,0.03761695]
[1740140615077,15.37681405,177.85,177.79,5.66091695]
[1740140615479,15.37681405,177.85,177.79,0.03761695]
[1740140615679,5.6222,177.83,177.79,5.66071695]
[1740140616174,5.6216,177.85,177.79,0.03761695]
[1740140616379,15.37681405,177.88,177.79,0.03761695]
[1740140616778,5.6221,177.83,177.8,5.6228]
[1740140617281,5.6219,177.84,177.81,5.6227]
[1740140617779,15.37681405,177.88,177.81,0.04244211]
[1740140618379,5.6219,177.84,177.81,0.04244211]
[1740140618874,5.6209,177.87,177.81,0.04244211]
[1740140619081,15.37681405,177.88,177.81,0.04244211]
[1740140619279,15.37681405,177.9,177.84,5.6215]
[1740140619676,15.37681405,177.9,177.85,0.04085089]
[1740140620177,5.6203,177.89,177.86,5.621]
[1740140620682,15.37681405,177.9,177.86,5.621]
[1740140620874,5.6199,177.9,177.86,5.621]
[1740140621173,5.6199,177.9,177.87,5.6208]
[1740140622377,3.5151,177.91,177.85,0.04085089]
[1740140622583,15.37681405,177.9,177.85,0.04085089]
[1740140623577,5.6211,177.86,177.85,0.04085089]
[1740140624474,5.6223,177.83,177.76,1.8463]
[1740140625085,5.6223,177.83,177.79,5.6231]
[1740140625282,5.6223,177.83,177.76,1.8463]
[1740140625479,5.65904046,177.83,177.79,0.03853357]
[1740140625984,5.65904046,177.83,177.8,5.6228]
[1740140626379,0.03674046,177.83,177.8,5.6228]
[1740140626580,5.65884046,177.83,177.8,5.6228]
[1740140627085,0.03674046,177.83,177.79,0.03853357]
[1740140628382,5.65894046,177.83,177.8,5.6228]
[1740140630384,0.03674046,177.83,177.79,0.03853357]
[1740140630583,5.6228,177.81,177.79,0.03853357]
[1740140631585,15.41355451,177.83,177.79,0.03853357]
[1740140631787,5.623,177.8,177.79,0.03853357]
[1740140634590,15.46672694,177.8,177.79,0.03853357]
[1740140636585,15.46672694,177.8,177.7,9.84372694]
[1740140636586,5.6246,177.76,177.7,9.84372694]
[1740140636889,15.46832694,177.76,177.7,9.84372694]
[1740140637188,9.84372694,177.76,177.73,6.99595341]
[1740140637888,9.88452733,177.76,177.73,7.03767361]
[1740140638392,15.50882733,177.76,177.73,7.03767361]
[1740140639294,5.6246,177.75,177.73,1.41267361]
[1740140640989,15.50892733,177.76,177.73,7.03767361]
[1740140641791,15.50892733,177.76,177.73,1.41267361]
[1740140641996,9.88452733,177.76,177.73,1.41267361]
[1740140642392,9.88452733,177.76,177.74,5.6247]
[1740140642689,0.04080039,177.76,177.74,9.84372694]
[1740140642896,9.84372694,177.83,177.74,66.10372694]
[1740140643093,1.7459,177.87,177.79,9.84372694]
[1740140643094,9.84372694,177.85,177.79,9.84372694]
[1740140643495,15.46522694,177.85,177.81,5.6225]
[1740140643797,1.7459,177.87,177.81,9.84372694]
[1740140643798,9.84372694,177.87,177.81,9.84372694]
[1740140644184,5.65928345,177.86,177.82,5.66302484]
[1740140644994,0.03798345,177.86,177.82,0.04082484]
[1740140645796,0.03798345,177.86,177.83,5.622]
[1740140645996,0.03798345,177.86,177.82,0.04082484]
[1740140646692,5.65918345,177.86,177.82,0.04082484]
[1740140646892,0.03798345,177.86,177.82,0.04082484]
[1740140647294,5.65918345,177.86,177.83,5.622]
[1740140647596,0.03798345,177.86,177.82,0.04082484]
[1740140647789,5.65928345,177.86,177.82,5.66302484]
[1740140648295,5.65928345,177.86,177.82,0.04082484]
[1740140648593,0.03798345,177.86,177.82,0.04082484]
[1740140648985,5.6215,177.85,177.82,0.04082484]
[1740140650399,5.6215,177.85,177.82,5.66312484]
[1740140650698,5.65938345,177.86,177.82,5.66312484]
[1740140651699,5.65938345,177.86,177.83,5.622]
[1740140652296,0.03798345,177.86,177.82,0.04082484]
[1740140652595,5.6215,177.85,177.82,5.66312484]
[1740140652796,0.03798345,177.86,177.82,0.04082484]
[1740140652996,5.65928345,177.86,177.83,5.622]
[1740140654798,0.03798345,177.86,177.82,0.04082484]
[1740140654998,5.65908345,177.86,177.83,5.622]
[1740140655200,0.03798345,177.86,177.82,0.04082484]
[1740140655395,0.03798345,177.86,177.85,5.6214]
[1740140656195,0.03798345,177.86,177.84,5.6215]
[1740140656403,0.03798345,177.86,177.82,0.04082484]
[1740140657099,20.9899353,177.85,177.82,0.04082484]
[1740140657298,15.3682353,177.85,177.82,0.04082484]
[1740140658802,20.9899353,177.85,177.82,0.04082484]
[1740140659000,15.3682353,177.85,177.82,0.04082484]
[1740140659402,5.6221,177.84,177.82,0.04082484]
[1740140660001,15.3682353,177.85,177.82,0.04082484]
[1740140660199,5.622,177.84,177.82,0.04082484]
[1740140663498,15.3682353,177.85,177.82,0.04082484]
[1740140663702,5.6221,177.83,177.82,0.04082484]
[1740140666598,15.46330792,177.83,177.82,0.04082484]
[1740140667102,1.85438345,177.86,177.82,0.04082484]
[1740140667305,9.84120792,177.85,177.82,0.04082484]
[1740140667504,9.84120792,177.85,177.82,5.66302484]
[1740140668400,9.84120792,177.85,177.83,5.6218]
[1740140669800,15.46260792,177.85,177.82,5.66312484]
[1740140671108,9.84120792,177.85,177.82,5.66312484]
[1740140671607,9.84120792,177.85,177.82,0.04082484]
[1740140671806,15.46330792,177.83,177.82,0.04082484]
[1740140677323,5.6233,177.8,177.74,3.4827]
[1740140677519,0.03798345,177.86,177.74,3.4827]
[1740140677520,9.84120792,177.79,177.74,3.4827]
[1740140678419,15.46470792,177.79,177.75,5.6244]
[1740140678615,0.03958581,177.78,177.75,5.66335875]
[1740140679223,0.03958581,177.78,177.75,0.03895875]
[1740140679423,5.66338581,177.78,177.75,0.03895875]
[1740140680224,5.66338581,177.78,177.75,5.66345875]
[1740140680618,0.03958581,177.78,177.75,5.66345875]
[1740140682723,5.66328581,177.78,177.75,5.66345875]
[1740140683718,5.66328581,177.78,177.75,0.03895875]
[1740140683919,15.46540792,177.77,177.75,0.03895875]
[1740140684125,9.84120792,177.77,177.75,0.03895875]
[1740140685316,15.46530792,177.77,177.75,0.03895875]
[1740140687423,9.84120792,177.77,177.75,0.03895875]
[1740140687626,5.6243,177.76,177.75,0.03895875]
[1740140695432,5.626,177.71,177.65,9.84120792]
[1740140695632,9.84120792,177.68,177.61,3.5371]
[1740140695831,9.84120792,177.68,177.66,5.6273]
[1740140696136,9.84120792,177.68,177.62,9.84120792]
[1740140696337,9.84120792,177.7,177.64,9.84120792]
[1740140696836,0.03950813,177.69,177.64,9.84120792]
[1740140697536,5.66620813,177.69,177.65,5.6277]
[1740140697937,9.84120792,177.68,177.65,5.6277]
[1740140699529,9.84120792,177.66,177.63,0.04078483]
[1740140699736,9.84120792,177.64,177.63,0.04078483]
[1740140700337,15.46930792,177.64,177.63,0.04078483]
[1740140700534,9.84120792,177.64,177.63,0.04078483]
[1740140700932,9.84120792,177.64,177.63,5.66918483]
[1740140701138,9.84120792,177.64,177.63,0.04078483]
[1740140705243,15.46930792,177.64,177.63,0.04078483]
[1740140706947,9.84120792,177.64,177.63,0.04078483]
[1740140707651,15.46930792,177.64,177.63,0.04078483]
[1740140714349,9.84120792,177.64,177.63,0.04078483]
[1740140715449,15.46930792,177.64,177.63,0.04078483]
[1740140718757,5.6296,177.6,177.56,1.8019]
[1740140718963,9.84120792,177.57,177.54,120.9258936]
[1740140719157,9.84120792,177.57,177.55,5.6307]
[1740140720458,9.84120792,177.57,177.54,0.03650452]
[1740140720658,15.47210792,177.55,177.54,0.03650452]
[1740140721859,9.84120792,177.55,177.45,9.84120792]
[1740140722162,9.84120792,177.52,177.51,5.6322]
[1740140723264,0.04178852,177.53,177.52,5.6319]
[1740140723462,9.84120792,177.59,177.51,66.17120792]
[1740140723662,9.84120792,177.63,177.58,9.84120792]
[1740140724070,9.84120792,177.67,177.6,9.84120792]
[1740140724267,9.84120792,177.65,177.58,9.84120792]
[1740140724468,9.84120792,177.63,177.58,9.84120792]
[1740140724666,9.84120792,177.61,177.6,0.0407246]
[1740140724868,9.84120792,177.61,177.56,9.84120792]
[1740140725068,0.03899376,177.62,177.59,0.0401534]
[1740140725258,9.84120792,177.63,177.58,9.84120792]
[1740140725464,9.84120792,177.61,177.59,0.04328083]
[1740140725767,9.84120792,177.63,177.57,9.84120792]
[1740140725968,0.04291197,177.62,177.58,0.04028972]
[1740140727965,0.04291197,177.62,177.59,5.6296]
[1740140728271,0.04291197,177.62,177.58,0.04028972]
[1740140728566,9.84120792,177.61,177.59,5.6296]
[1740140729472,9.84120792,177.61,177.58,5.67028972]
[1740140730671,9.84120792,177.61,177.58,5.67018972]
[1740140731173,9.84120792,177.61,177.58,0.04028972]
[1740140731374,9.84120792,177.59,177.58,0.04028972]
[1740140731771,9.84120792,177.59,177.52,1.7852]
[1740140732071,9.84120792,177.57,177.52,1.7852]
[1740140732273,9.84120792,177.57,177.54,5.631]
[1740140732672,9.84120792,177.57,177.52,1.7852]
[1740140732968,0.03629447,177.56,177.55,9.84120792]
[1740140733271,15.46960792,177.63,177.58,5.6298]
[1740140733465,9.84120792,177.61,177.55,9.84120792]
[1740140734266,0.03821128,177.6,177.56,0.03825362]
[1740140734468,0.03821128,177.6,177.56,1.84895362]
[1740140734667,9.84120792,177.65,177.63,5.6282]
[1740140734867,202.84120792,177.67,177.59,9.84120792]
[1740140735874,0.03831602,177.65,177.61,0.03554193]
[1740140736468,0.03831602,177.65,177.64,5.6281]
[1740140737973,9.84120792,177.71,177.64,56.29]
[1740140738173,5.2054,177.78,177.67,9.84120792]
[1740140738373,9.84120792,177.71,177.65,9.84120792]
[1740140739177,0.03578924,177.7,177.66,1.71438186]
[1740140739374,0.03578924,177.7,177.69,5.6265]
[1740140739776,0.03578924,177.7,177.69,61.9065]
[1740140739974,9.84120792,177.75,177.72,5.6254]
[1740140741179,9.88402645,177.75,177.72,0.04212898]
[1740140741372,9.84120792,177.73,177.72,0.04212898]
[1740140742678,15.46640792,177.73,177.72,0.04212898]
[1740140744469,9.84120792,177.73,177.72,0.04212898]
[1740140745186,15.46640792,177.73,177.72,0.04212898]
[1740140745975,9.84120792,177.73,177.72,0.04212898]
[1740140746581,5.625,177.74,177.72,0.04212898]
[1740140747276,15.43538861,177.75,177.72,0.04212898]
[1740140747481,15.43538861,177.75,177.73,5.6252]
[1740140747879,0.04281853,177.75,177.73,5.6252]
[1740140748579,0.04281853,177.75,177.72,5.66752898]
[1740140749286,0.04281853,177.75,177.72,0.04212898]
[1740140749583,0.04281853,177.75,177.73,5.6252]
[1740140750074,0.04281853,177.75,177.74,5.6249]
[1740140750271,0.04281853,177.75,177.72,0.04212898]
[1740140751081,5.6251,177.74,177.72,0.04212898]
[1740140751477,15.43538861,177.75,177.72,0.04212898]
[1740140751674,21.06008861,177.75,177.72,5.66762898]
[1740140751873,15.43538861,177.75,177.72,0.04212898]
[1740140752482,5.6251,177.74,177.72,0.04212898]
[1740140753086,15.43538861,177.75,177.72,0.04212898]
[1740140753284,21.06008861,177.75,177.72,5.66752898]
[1740140753682,21.06008861,177.75,177.72,0.04212898]
[1740140754485,15.43538861,177.75,177.73,5.6252]
[1740140754981,0.04281853,177.75,177.74,5.6249]
[1740140756177,0.04281853,177.75,177.72,0.04212898]
[1740140756688,0.04281853,177.75,177.73,5.625]
[1740140757186,0.04281853,177.75,177.72,0.04212898]